Cogmind - Beta 16 @@@ ROGUE MODE // 2026.02.07 @ 23:15:20 Player: Moddy Result: Destroyed by G-47 Trooper with Particle Gun Performance ------------- Evolutions (2) 1000 Regions Visited (4) 800 Robots Destroyed (21) 105 Value Destroyed (706) 706 Prototype IDs (2) 40 Alien Tech Used (0) 0 Bonus (68) 68 TOTAL SCORE: 2719 Bonus ------- Follower Combat Kills 68 Cogmind --------- Core Integrity 0/550 Matter 300/300 Energy 100/100 System Corruption 0% Temperature Cool (9) Movement Core (200) Ox3 Location -8/Storage Parts ------- > --- POWER (1) -------- (None) > --- PROPULSION (5) --- (None) > --- UTILITY (3) ------ Medium Storage Unit > --- WEAPON (2) ------- (None) > --- INVENTORY (10) --- Light Ion Engine High-capacity Battery (250) Signal Interpreter ECM Suite Shield Generator Peak State ------------ > --- POWER ------------ Light Nuclear Core > --- PROPULSION ------- Light Treads Light Treads Improved Treads Carbon-fiber Leg Carbon-fiber Leg > --- UTILITY ---------- Improved Heat Sink Medium Storage Unit Insulated Plating > --- WEAPON ----------- Precision Beam Rifle Heavy Assault Rifle > --- INVENTORY -------- Ion Engine Light Ion Engine Aluminum Leg Aluminum Leg Wheel Wheel High-capacity Battery Signal Interpreter ECM Suite Shield Generator [Rating: 27] Favorites ----------- Power Ion Engine Engine Ion Engine Power Core Light Nuclear Core Propulsion Aluminum Leg Treads Light Treads Leg Aluminum Leg Wheel Wheel Utility Medium Storage Unit Device ECM Suite Storage Medium Storage Unit Protection Hardened Medium Armor Plating Weapon Assault Rifle Energy Gun Improved EM Shotgun Ballistic Gun Assault Rifle Build | -11 -10 -9 -8 -8 ------- Run | Yrd Mat Mat Mat Sto Slots Evolved 4 | . . 2 2 . Power . | . . . . . Propulsion 3 | . . 2 1 . Utility 1 | . . . 1 . Weapon . | . . . . . Parts Attached 27 | . 3 4 2 18 Power 4 | . 1 . . 3 Engine 2 | . 1 . . 1 Core 2 | . . . . 2 Reactor . | . . . . . Propulsion 11 | . . 3 . 8 Treads 3 | . . 3 . . Leg 6 | . . . . 6 Wheel 2 | . . . . 2 Hover . | . . . . . Flight . | . . . . . Utility 8 | . 2 . 2 4 Device 4 | . 1 . . 3 Storage 2 | . 1 . 1 . Processor . | . . . . . Hackware . | . . . . . Protection 2 | . . . 1 1 Artifact . | . . . . . Weapon 4 | . . 1 . 3 Energy Gun 2 | . . 1 . 1 Energy Cannon . | . . . . . Ballistic Gun 2 | . . . . 2 Ballistic Cannon . | . . . . . Launcher . | . . . . . Special Weapon . | . . . . . Impact Weapon . | . . . . . Slashing Weapon . | . . . . . Piercing Weapon . | . . . . . Special Melee Weapon . | . . . . . Unidentified Prototypes 2 | . . 1 . 1 Parts Lost 19 | . . . . 19 Power 3 | . . . . 3 Propulsion 10 | . . . . 10 Utility 3 | . . . . 3 Weapon 3 | . . . . 3 Highest Loss Streak 17 | . . . . 17 To Critical Strikes . | . . . . . Average Backups 9 | . 9 9 8 9 Power 1 | . 1 2 2 1 Propulsion 3 | . 4 2 2 2 Utility 3 | . 2 3 3 3 Weapon . | . 1 1 1 . Tool/Special . | . . . . . Unused Backups 11 | . 2 3 . 6 Power 1 | . . . . 1 Propulsion 1 | . . . . 1 Utility 6 | . 2 1 . 3 Weapon 3 | . . 2 . 1 Tool/Special . | . . . . . Average Slot Usage (%) 96 | . 97 99 98 94 Engine 8 | . 14 11 9 4 Core 1 | . . . . 3 Treads 18 | . . 21 27 23 Leg 20 | . 28 22 18 16 Device 10 | . 11 11 9 9 Storage 10 | . 14 11 12 9 Protection 4 | . . . 3 8 Energy Gun 9 | . 14 11 9 7 Ballistic Gun 10 | . 14 11 9 9 Peak Build Rating 27 | . 8 13 17 27 Average Rating 14 | . 7 12 15 18 On Entrance 10 | 6 6 8 13 17 Avg Prop Armor Cover (%) 16 | . . 16 18 16 Naked Turns . | . . . . . Heaviest Build 30 | 11 20 22 30 30 Greatest Support 30 | 20 20 20 20 30 Greatest Overweight (x) 5 | . . 1 1 5 Average Overweight (x) . | . . . 1 . Largest Inventory Capacity 10 | . 10 10 10 10 Average Capacity 9 | . 9 10 10 10 Most Carried 10 | . 10 10 9 10 Average Carried 9 | . 9 9 8 9 Final Capacity 10 | 8 10 10 10 10 Final Carried 10 | 6 10 10 9 5 Class Distribution -------------------- 92% | Mutant 7% | Scavenger-Mutant Dominant Class ---------------- Mutant | -10/Materials Mutant | -9/Materials Mutant | -8/Materials Mutant | -8/Storage Resources | -11 -10 -9 -8 -8 ----------- Run | Yrd Mat Mat Mat Sto Matter Collected 791 | 154 105 60 . 472 Remotely . | . . . . . Salvage Created 1080 | . 161 60 . 859 Parts 52 | . 14 . . 38 Haulers Intercepted 3 | . 1 1 . 1 Recyclers Shooed 1 | . 1 . . . Parts Field Recycled . | . . . . . Retrieved Matter . | . . . . . Parts Self-Destructed . | . . . . . Prevented . | . . . . . Parts Restored . | . . . . . Kills | -11 -10 -9 -8 -8 ------- Run | Yrd Mat Mat Mat Sto Combat Hostiles Destroyed 14 | . 2 . . 12 Guns 14 | . 2 . . 12 Classes Destroyed 9 | . 3 . . 6 Hauler 3 | . 1 1 . 1 Recycler 2 | . . . . 2 Operator 1 | . . . . 1 Watcher 1 | . 1 . . . Grunt 10 | . 2 . . 8 Brawler 1 | . . . . 1 Duelist 1 | . . . . 1 Sentry 1 | . . . . 1 Hunter 1 | . . . . 1 Best Kill Streak 5 | . 4 1 . 5 Combat Bots Only 4 | . 1 . . 4 Max Kills in Single Turn 1 | . 1 1 . 1 Gunslinging . | . . . . . Exploded . | . . . . . Melee . | . . . . . Uniques/NPCs Destroyed . | . . . . . Combat | -11 -10 -9 -8 -8 -------- Run | Yrd Mat Mat Mat Sto Hostile Shots Fired 242 | . 12 2 . 228 Missed 51 | . . 1 . 50 Hits 191 | . 12 1 . 178 Melee 9 | . . . . 9 Projectile 182 | . 12 1 . 169 Critical Strikes 13 | . 2 . . 11 Damage Taken 2822 | . 158 12 . 2652 Core 560 | . . . . 560 Absorbed by Shields . | . . . . . Core Remaining (%) 100 | 100 100 100 . . Volleys Fired 99 | . 15 3 . 81 Largest 2 | . 2 2 . 2 Hottest 84 | . 60 65 . 84 Shots Fired 183 | . 30 6 . 147 Gun 183 | . 30 6 . 147 Cannon . | . . . . . Launcher . | . . . . . Special . | . . . . . Kinetic 115 | . 15 3 . 97 Thermal 49 | . 15 . . 34 Explosive . | . . . . . Electromagnetic 19 | . . 3 . 16 Robot Hit Streak 16 | . 6 6 . 16 Robot Miss Streak 3 | . 3 1 . 3 Penetration Max . | . . . . . Secondary Targets 3 | . . . . 3 Max Gunslinging Chain 1 | . . . . 1 Shots Hit Robots 126 | . 18 6 . 102 Core Hits 52 | . 9 2 . 41 Critical Kills 1 | . . . . 1 Critical Parts Destroyed . | . . . . . Critical Strikes 2 | . . . . 2 Burn 1 | . . . . 1 Destroy 1 | . . . . 1 Melee Attacks . | . . . . . Impact . | . . . . . Slashing . | . . . . . Piercing . | . . . . . Sneak Attacks . | . . . . . Combat Hostiles . | . . . . . Follow-up Attacks . | . . . . . Damage Inflicted 1935 | . 205 96 . 1634 Guns 1919 | . 202 96 . 1621 Cannons . | . . . . . Explosions . | . . . . . Melee . | . . . . . Ramming 16 | . 3 . . 13 Kinetic 989 | . 117 38 . 834 Thermal 609 | . 85 . . 524 Explosive . | . . . . . Electromagnetic 321 | . . 58 . 263 Impact . | . . . . . Slashing . | . . . . . Piercing . | . . . . . Highest Corruption . | . . . . . Average Corruption . | . . . . . Corruption Purged . | . . . . . Corruption Blocked . | . . . . . Overload Shots . | . . . . . Overflow Damage . | . . . . . Projectiles . | . . . . . Explosions . | . . . . . Melee . | . . . . . Knockbacks . | . . . . . Impact . | . . . . . Kinetic . | . . . . . Secondary . | . . . . . Self-Inflicted Damage 6 | . . . . 6 Shots . | . . . . . Rammed 2 | . . . . 2 Targets Rammed 3 | . 1 . . 2 Kicked 1 | . 1 . . . Crushed . | . . . . . Highest Temperature 198 | . 81 . . 198 Average Temperature 51 | . 35 . . 56 Received Heat Transfer 1389 | . 123 6 . 1260 Siege Activations . | . . . . . Martial Activations . | . . . . . Shielding Activations . | . . . . . Robots Disrupted 1 | . . . . 1 Combat Hostiles 1 | . . . . 1 Robots Corrupted . | . . . . . Combat Hostiles . | . . . . . Parts Fried 2 | . . 1 . 1 Impact Corruptions . | . . . . . Robots Melted . | . . . . . Combat Hostiles . | . . . . . Parts Melted . | . . . . . Heat Transferred 1296 | . 200 . . 1096 Parts Sabotaged . | . . . . . Parts Stolen . | . . . . . Parts Stripped . | . . . . . Power Chain Reactions . | . . . . . Alert | -11 -10 -9 -8 -8 ------- Run | Yrd Mat Mat Mat Sto Maximum Alert Level . | . . . . . Low Security (%) 100 | . 100 100 100 100 Level 1 . | . . . . . Level 2 . | . . . . . Level 3 . | . . . . . Level 4 . | . . . . . Level 5 . | . . . . . High Security . | . . . . . Max Security . | . . . . . Peak Influence 130 | . 38 11 . 130 Initial 11 | . . 11 . . Average 19 | . 3 . . 37 Influence Increases 513 | . 70 7 . 436 Destroy 0b10 Robot/C 320 | . 40 . . 280 Destroy 0b10 Robot/NC 35 | . 10 5 . 20 Destroy Leader 68 | . 14 2 . 52 Allied During Kill 8 | . . . . 8 Successful Hack 5 | . 5 . . . Disable Machine 15 | . . . . 15 Destroy Structure 2 | . 1 . . 1 Lose Combat Pursuer 60 | . . . . 60 Influence Decreases 513 | . 42 35 . 436 Entered New Map 17 | . . 17 . . Time Decay 278 | . 42 18 . 218 Lost Part 178 | . . . . 178 Lost Ally 40 | . . . . 40 Squads Dispatched 3 | . . . . 3 Investigation . | . . . . . Extermination . | . . . . . Reinforcement 1 | . . . . 1 Assault 2 | . . . . 2 Garrison . | . . . . . Intercept . | . . . . . Searches Triggered . | . . . . . Construction Impeded . | . . . . . Haulers Reinforced . | . . . . . Active Scanning Responses . | . . . . . Cargo Convoy Interrupts . | . . . . . Stealth | -11 -10 -9 -8 -8 --------- Run | Yrd Mat Mat Mat Sto Distress Signals 5 | . 2 . . 3 Communications Jammed . | . . . . . Distress Signals . | . . . . . Times Spotted 47 | . 7 4 1 35 Peak Tracking Total 11 | . 2 4 1 11 Tactical Retreats 9 | . 2 . . 7 ECM-based Alert Blocks 6 | . 2 . . 4 Traps | -11 -10 -9 -8 -8 ------- Run | Yrd Mat Mat Mat Sto Traps Triggered 2 | . . . . 2 Indirectly . | . . . . . Trap Hack Attempts . | . . . . . Triggered . | . . . . . Disarmed . | . . . . . Reprogrammed . | . . . . . Reused . | . . . . . Traps Extracted . | . . . . . Installed . | . . . . . Triggered . | . . . . . Machines | -11 -10 -9 -8 -8 ---------- Run | Yrd Mat Mat Mat Sto Machines Disabled 1 | . . . . 1 Max in Single Turn 1 | . . . . 1 Machines Repaired . | . . . . . Machines Dismantled . | . . . . . Machines Sabotaged . | . . . . . Overloaded Fab Kills . | . . . . . Hacking | -11 -10 -9 -8 -8 --------- Run | Yrd Mat Mat Mat Sto Machines Accessed 4 | . 1 2 . 1 Terminals 3 | . 1 2 . . Fabricators . | . . . . . Repair Stations . | . . . . . Recycling Units 1 | . . . . 1 Scanalyzers . | . . . . . Garrison Access . | . . . . . Total Hacks 7 | . 2 3 . 2 Successful 6 | . 2 2 . 2 Failed 1 | . . 1 . . Catastrophic 1 | . . 1 . . Database Lockouts . | . . . . . Manual 3 | . 1 2 . . Terminals 5 | . 2 3 . . Fabricators . | . . . . . Repair Stations . | . . . . . Recycling Units 2 | . . . . 2 Scanalyzers . | . . . . . Garrison Access . | . . . . . Terminal Hacks 2 | . 1 1 . . Locate Traps 1 | . . 1 . . Zone Layout 1 | . 1 . . . Fabricator Hacks . | . . . . . Repair Station Hacks . | . . . . . Recycling Unit Hacks 2 | . . . . 2 Retrieve Components 2 | . . . . 2 Scanalyzer . | . . . . . Garrison Access Hacks . | . . . . . Unauthorized Hacks 2 | . 1 1 . . Terminals 2 | . 1 1 . . Botnet 2 | . 1 1 . . Fabricators . | . . . . . Repair Stations . | . . . . . Recycling Units . | . . . . . Scanalyzers . | . . . . . Garrison Access . | . . . . . Data Cores Recovered . | . . . . . Used . | . . . . . Hacking Detections 3 | . 1 2 . . Full Trace Events . | . . . . . Feedback Events . | . . . . . Feedback Blocked . | . . . . . Robot Schematics Acquired . | . . . . . Robots Built . | . . . . . Authchips . | . . . . . Time . | . . . . . Total Robot Build Rating . | . . . . . Part Schematics Acquired . | . . . . . Parts Built . | . . . . . Authchips . | . . . . . Time . | . . . . . Total Part Build Rating . | . . . . . Part Studies Acquired . | . . . . . Parts Repaired . | . . . . . Time . | . . . . . Parts Recycled . | . . . . . Recycled Matter . | . . . . . Retrieved Matter . | . . . . . Retrieved Components 7 | . . . . 7 Parts Scanalyzed . | . . . . . Part Schematics Acquired . | . . . . . Parts Damaged . | . . . . . Bothacking | -11 -10 -9 -8 -8 ------------ Run | Yrd Mat Mat Mat Sto Used RIF Installer . | . . . . . Robots Hacked . | . . . . . Non-combat . | . . . . . Combat . | . . . . . Robot Hacks Applied . | . . . . . Relay Couplers Released . | . . . . . Fabnet Peak Effective % . | . . . . . Robots Rewired . | . . . . . Allies Hacked . | . . . . . Hacks Repelled . | . . . . . Allies | -11 -10 -9 -8 -8 -------- Run | Yrd Mat Mat Mat Sto Total Allies 2 | . . . . 2 Largest Group 2 | . . . . 2 Highest-Rated Group 62 | . . . . 62 Highest-Rated Ally 31 | . . . . 31 Total Orders . | . . . . . Ally Attacks 18 | . . . . 18 Total Damage 317 | . . . . 317 Kills 2 | . . . . 2 Allies Corrupted . | . . . . . Allies Melted . | . . . . . Intel | -11 -10 -9 -8 -8 ------- Run | Yrd Mat Mat Mat Sto Active Infowar (turns) 1097 | . 277 353 64 403 ECM 1097 | . 277 353 64 403 Robot Analysis Total . | . . . . . Derelict Logs Recovered . | . . . . . Drone Launches . | . . . . . Drone Recoveries . | . . . . . Exploration | -11 -10 -9 -8 -8 ------------- Run | Yrd Mat Mat Mat Sto Turns Passed 1448 | . 321 353 64 710 Spaces Moved 661 | 1 203 208 32 217 Core 4 | . . . . 4 Treads . | . . . . . Legs 608 | 1 203 208 32 164 Wheels 49 | . . . . 49 Hover . | . . . . . Flight . | . . . . . Fastest Speed 80 | 120 120 120 190 80 Average Speed 149 | 120 120 162 190 158 Slowest Speed 300 | 120 120 190 190 300 Overloaded Moves . | . . . . . Propulsion Burnouts . | . . . . . Robots Hopped . | . . . . . Potential Cave-ins . | . . . . . Cave-ins Triggered . | . . . . . Exploration Rate (%) 18 | 2 27 20 9 34 Regions Visited 4 Branch Regions 1 Pre-discovered Areas . | . . . . . Known Exits Taken . | . . . . . Unknown Exits Taken 4 | 1 1 1 1 . Scrap Searched . | . . . . . Spaces Dug . | . . . . . Terrain Destroyed . | . . . . . Melee . | . . . . . Projectile . | . . . . . AOE . | . . . . . Terrain Rammed . | . . . . . Walls Destroyed . | . . . . . Machines Disabled . | . . . . . Actions | -11 -10 -9 -8 -8 --------- Run | Yrd Mat Mat Mat Sto Total 934 | . 249 217 35 433 Wait 118 | . 24 . . 94 Move 657 | . 202 207 31 217 Hop . | . . . . . Pick Up 7 | . 3 2 1 1 Fast Attach 5 | . 1 . . 4 Attach 10 | . . 2 2 6 Detach . | . . . . . Swap 17 | . 2 2 1 12 Drop 8 | . 1 1 . 6 Fire 99 | . 15 3 . 81 Melee . | . . . . . Ram 2 | . . . . 2 Kick 1 | . 1 . . . Crush . | . . . . . Escape Stasis 10 | . . . . 10 Rewire . | . . . . . Trap . | . . . . . Miscellaneous . | . . . . . Route ------- -11/Scrapyard -10/Materials (discovered 2 exits: *Mat / [Min]) -9/Materials -8/Materials -8/Storage History --------- Turn | Location | Event 1 | -11/Scrapyard | Discovered new exit (range 0) 1 | -11/Scrapyard | Entered Materials 170 | -10/Materials | Discovered new exit (range 18) 170 | -10/Materials | Discovered new exit (range 20) 312 | -10/Materials | Build established: Mutant 322 | -10/Materials | Entered another Materials area 322 | -9/Materials | Evolved 2 slots: Propulsion x2 665 | -9/Materials | Discovered new exit (range 6) 675 | -9/Materials | Entered another Materials area 675 | -8/Materials | Evolved 2 slots: Propulsion x1, Utility x1 716 | -8/Materials | Discovered new exit (range 6) 739 | -8/Materials | Entered Storage 1258 | -8/Storage | Met a pair of Derelict thieves 1371 | -8/Storage | Core integrity fell below 50% 1425 | -8/Storage | Core integrity fell below 20% 1449 | -8/Storage | Destroyed by G-47 Trooper with Particle Gun Last Messages --------------- 01391_ Prc. Beam Rifle destroyed. 01394_ Lgt. Nuclear Core destroyed. 01396_ Carbon-fiber Leg destroyed. 01397_ Acquired 69 matter. 01397_ K-01 Serf destroyed. 01400_ K-01 Serf cleans the Heavy Doors. 01401_ Acquired 22 matter. 01402_ R-06 Scavenger collects Imp. Heat Sink. 01416_ Slammed into S-10 Pest. 01416_ Destabilizing: System interference. 01416_ Imp. Heat Sink temporarily disabled. 01417_ Slammed into S-10 Pest. 01419_ K-01 Serf cleans the Packing Station. 01421_ Wheel destroyed. 01427_ K-01 Serf cleans the Storage Shell. 01429_ Imp. Heat Sink destroyed. 01440_ Wheel destroyed. 01442_ Adv. Heat Sink destroyed. 01445_ Ion Engine destroyed. 01446_ S-10 Pest destroyed. Map ----- +----------------------------------------------------+ | ?????????????????????????# """""[[# | | ?????????????????????????#! """"" # | | ?????????????????????????# = # | | ????##########################+##### | | ????# ^^ % | | ????# ^^ !% % | | ????# [ = % | | ????######+########### | | ??????# = = #?????# "" "" | | ??????# """" #?????# """" """" | | ??????# "??" #?????# """" """" | | ??????# "??" #?????# """" """" | | ??????# "??" #?????/ """ """ | | ??????# "??" #?????# """ """ | | ??????# "??" #?????# % | | ??????# ?? #?????# | | ??????# ?? #?????# | | ??????#####+########## "T" | | ??????????# "" % | | ??????????# | | ??????????# % % | | ??????????###+#/#########/##### % | | ??????????# # % #####+## | | ??????????#gg"""" # ##[ % ## | | ??????????#[%"??" # """" ## %T# | | ??????????#@="??" # """" ###"!"## | | ??????????# "??" # """" ## %%%=* | | ??????????#s "??" # """" ## *!%!! | | ??????????# s"""" # ##!!!=! | | ??????????# g # ##! !* ! | | ??????????# # ######## | | ??????????############### ###??????? | | ?????????????????????????##????????? | | ???????????????????????????????????? | | ???????????????????????????????????? | | ???????????????????????????????????? | | ???????????????????????????????????? | | ???????????????????????????????????? | | ???????????????????????????????????? | | ???????????????????????????????????? | | ???????????????????????????????????? | | ???????????????????????????????????? | | ???????????????????????????????????? | | ???????????????????????????????????? | | ???????????????????????????????????? | | ???????????????????????????????????? | | ???????????????????????????????????? | | ???????????????????????????????????? | | ???????????????????????????????????? | | ???????????????????????????????????? | +----------------------------------------------------+ Best States ------------- Heat Dissipation 64 Energy Generation 14 Energy Capacity 500 Matter Stores 300 Matter Capacity 300 Sight Range 16 Terrain Scan Density 10 ECM Strength 1 Armor Coverage 225 Resistance: EM 15 Evasion (%) 55 Item Schematics ----------------- None Robot Schematics ------------------ None Fabricated ------------ Nothing Repaired ---------- Nothing Studied --------- None Alien Tech Used ----------------- None Achievements -------------- None Challenges ------------ None Game ------ Seed AdvancedSpectralMinigun Manual? 0 Play Time 00:14:14 Cumulative 43.2 hours Start 2026.02.07 @ 22:42:57 End 2026.02.07 @ 23:15:20 Sessions 1 Manual Loads 0 Difficulty Rogue Special Mode None Game No. 65 Rogue 65 Adventurer 0 Explorer 0 Win Type - Total 0 Types 0/0/0/0/0/0/0/0/0/0 Lore% 23 Gallery% 37 Achievement% 24 Wizard Run 0 Options --------- Layout 1 ASCII 0 Keyboard 0 Movement Mouse Keybinds 0 Fullscreen 2 Font 32/SmallcapsGlow Map View 77x35 Zoom Use 0% Tactical HUD 1 Map Filters NONE Filters NONE Steam 1 RUN: a9ea3c00-febc-45bc-affa-da8d1116bd17